Workbook

Sheet VALIDACION
E2: isin
E3: USP30179AM09
C5: 104243 | D5: 1000 | G5: 19733.89149
A7: isin | B7: TC | C7: PRECIO MONEDA DE ORIGEN | D7: VALOR NOMINAL | E7: PRECIO EN MN | F7: PRECIO LIMPIO CALCULADO | G7: PRECIO VECTOR PRECIOS | H7: DIFERENCIA
A8: USP30179AJ79 | C8: 105.9 | D8: 1000 | G8: 20051.93542
A9: USP30179AM09 | C9: 104243 | D9: 1000 | G9: 19733.89149
A10: US91086QAY44
A11: US91086QBA58
A12: US91086QBC15
A13: US91086QBD97
A14: US91087BAA89
A15: US71656MBD02
A16: US706451AG65
A17: US71654QAX07
A18: US706451BS94
A19: US71654QBH48
A20: US71656MAS89
A21: US71656MAW91
A22: US71654QAW24
A23: US71654QBG64
A24: US71654QBB77
A25: US71656MBD02
A26: USP14517AA73
A27: USP3691NBF61
A28: USP13296AL53
A29: USP6629MAA01

Sheet 20170504
D2: Caracteristicas 5 Mayo | H2: vector 4 Mayo
B3: isin | C3: TC | D3: PRECIO MONEDA DE ORIGEN | E3: VALOR NOMINAL | F3: PRECIO EN MN | G3: PRECIO LIMPIO CALCULADO | H3: PRECIO VECTOR PRECIOS | I3: DIFERENCIA
B4: USP30179AJ79 | C4: 19.0019 | D4: 105.92846 | E4: 1000 | F4: =C4*D4 -> 2012.842004 | G4: =(E4*F4)/100 -> 20128.42004 | H4: 20128.42004 | I4: =G4-H4 -> -2.599990694e-07
B5: USP30179AM09 | C5: 19.0019 | D5: 104.153 | E5: 1000 | F5: =C5*D5 -> 1979.104891 | G5: =(E5*F5)/100 -> 19791.04891 | H5: 19791.04891 | I5: =G5-H5 -> 0
B6: US91086QAY44 | C6: 19.0019 | D6: 108.6 | E6: 2000 | F6: 2063.60634 | G6: 41272.1268 | H6: 41272.1268 | I6: 0
B7: US91086QBA58 | C7: 19.0019 | D7: 103.35 | E7: 2000 | F7: 1963.846365 | G7: 39276.9273 | H7: 39276.9273 | I7: 0
B8: US91086QBC15 | C8: 19.0019 | D8: 104.25 | E8: 2000 | F8: 1980.948075 | G8: 39618.9615 | H8: 39618.9615 | I8: 0
B9: US91086QBD97 | C9: 19.0019 | D9: 103.9 | E9: 1000 | F9: 1974.29741 | G9: 19742.9741 | H9: 19742.9741 | I9: 0
B10: US91087BAA89 | C10: 19.0019 | D10: 100.75 | E10: 1000 | F10: 1914.441425 | G10: 19144.41425 | H10: 19144.41425 | I10: 0
B11: US71656MBD02 | C11: 19.0019 | D11: 97.2875 | E11: 1000 | F11: 1848.647346 | G11: 18486.47346 | H11: 18486.47346 | I11: -5.000001693e-07
B12: US706451AG65 | C12: 19.0019 | D12: 116 | E12: 1000 | F12: 2204.2204 | G12: 22042.204 | H12: 22042.204 | I12: 0
B13: US71654QAX07 | C13: 19.0019 | D13: 106.37148 | E13: 1000 | F13: 2021.260226 | G13: 20212.60226 | H13: 20212.60226 | I13: 1.200023689e-07
B14: US706451BS94 | C14: 19.0019 | D14: 103.25 | E14: 1000 | F14: 1961.946175 | G14: 19619.46175 | H14: 19619.46175 | I14: 0
B15: US71654QBH48 | C15: 19.0019 | D15: 101.9793 | E15: 1000 | F15: 1937.800461 | G15: 19378.00461 | H15: 19378.00461 | I15: -2.999986464e-07
B16: US71656MAS89 | C16: 19.0019 | D16: 101.45 | E16: 1000 | F16: 1927.742755 | G16: 19277.42755 | H16: 19277.42755 | I16: 0
B17: US71656MAW91 | C17: 19.0019 | D17: 101.3775 | E17: 1000 | F17: 1926.365117 | G17: 19263.65117 | H17: 19263.65117 | I17: -5.000001693e-07
B18: US71654QAW24 | C18: 19.0019 | D18: 108.08676 | E18: 1000 | F18: 2053.853805 | G18: 20538.53805 | H18: 20538.53805 | I18: 4.399989848e-07
B19: US71654QBG64 | C19: 19.0019 | D19: 95.79 | E19: 1000 | F19: 1820.192001 | G19: 18201.92001 | H19: 18201.92001 | I19: 0
B20: US71654QBB77 | C20: 19.0019 | D20: 103.49 | E20: 1000 | F20: 1966.506631 | G20: 19665.06631 | H20: 19665.06631 | I20: 0
B21: US71656MBD02 | C21: 19.0019 | D21: 97.2875 | E21: 1000 | F21: 1848.647346 | G21: 18486.47346 | H21: 18486.47346 | I21: -5.000001693e-07
B22: USP14517AA73 | C22: 19.0019 | D22: 102.58438 | E22: 1000 | F22: 1949.29813 | G22: 19492.9813 | H22: 19492.9813 | I22: 2.199994924e-07
B23: USP3691NBF61 | C23: 19.0019 | D23: 97.156 | E23: 1000 | F23: 1846.148596 | G23: 18461.48596 | H23: 18461.48596 | I23: 0
B24: USP13296AL53 | C24: 19.0019 | D24: 100.6 | E24: 1000 | F24: 1911.59114 | G24: 19115.9114 | H24: 19115.9114 | I24: 0
B25: USP6629MAA01 | C25: 19.0019 | D25: 101.65 | E25: 1000 | F25: 1931.543135 | G25: 19315.43135 | H25: 19315.43135 | I25: 0

Sheet 20170503
D2: Caracteristicas 2 Mayo | H2: vector 3 Mayo
B3: isin | C3: TC | D3: PRECIO MONEDA DE ORIGEN | E3: VALOR NOMINAL | F3: PRECIO EN MN | G3: PRECIO LIMPIO CALCULADO | H3: PRECIO VECTOR PRECIOS | I3: DIFERENCIA
B4: USP30179AJ79 | C4: 18.8031 | D4: 105.99 | E4: 1000 | F4: =C4*D4 -> 1992.940569 | G4: =(E4*F4)/100 -> 19929.40569 | H4: 19929.40569 | I4: =G4-H4 -> 0
B5: USP30179AM09 | C5: 18.8031 | D5: 104.283 | E5: 1000 | F5: =C5*D5 -> 1960.843677 | G5: =(E5*F5)/100 -> 19608.43677 | H5: 19608.43677 | I5: =G5-H5 -> 0
B6: US91086QAY44 | C6: 18.8031 | D6: 108.75 | E6: 2000 | F6: 2044.837125 | G6: 40896.7425 | H6: 40896.7425 | I6: 0
B7: US91086QBA58 | C7: 18.8031 | D7: 103.425 | E7: 2000 | F7: 1944.710617 | G7: 38894.21235 | H7: 38894.21235 | I7: 0
B8: US91086QBC15 | C8: 18.8031 | D8: 104.55 | E8: 2000 | F8: 1965.864105 | G8: 39317.2821 | H8: 39317.2821 | I8: 0
B9: US91086QBD97 | C9: 18.8031 | D9: 104.1 | E9: 1000 | F9: 1957.40271 | G9: 19574.0271 | H9: 19574.0271 | I9: 0
B10: US91087BAA89 | C10: 18.8031 | D10: 101.275 | E10: 1000 | F10: 1904.283953 | G10: 19042.83953 | H10: 19042.83952 | I10: 0
B11: US71656MBD02 | C11: 18.8031 | D11: 97.7675 | E11: 1000 | F11: 1838.332079 | G11: 18383.32079 | H11: 18383.32079 | I11: -4.999965313e-07
B12: US706451AG65 | C12: 18.8031 | D12: 116 | E12: 1000 | F12: 2181.1596 | G12: 21811.596 | H12: 21811.596 | I12: 0
B13: US71654QAX07 | C13: 18.8031 | D13: 106.39405 | E13: 1000 | F13: 2000.537962 | G13: 20005.37962 | H13: 20005.37962 | I13: -4.499997885e-07
B14: US706451BS94 | C14: 18.8031 | D14: 103.25 | E14: 1000 | F14: 1941.420075 | G14: 19414.20075 | H14: 19414.20075 | I14: 0
B15: US71654QBH48 | C15: 18.8031 | D15: 102.15 | E15: 1000 | F15: 1920.736665 | G15: 19207.36665 | H15: 19207.36665 | I15: 0
B16: US71656MAS89 | C16: 18.8031 | D16: 101.49 | E16: 1000 | F16: 1908.326619 | G16: 19083.26619 | H16: 19083.26619 | I16: 0
B17: US71656MAW91 | C17: 18.8031 | D17: 101.04875 | E17: 1000 | F17: 1900.029751 | G17: 19000.29751 | H17: 19000.29751 | I17: 2.500019036e-07
B18: US71654QAW24 | C18: 18.8031 | D18: 108.14294 | E18: 1000 | F18: 2033.422515 | G18: 20334.22515 | H18: 20334.22515 | I18: 1.400003384e-07
B19: US71654QBG64 | C19: 18.8031 | D19: 96.37395 | E19: 1000 | F19: 1812.129019 | G19: 18121.29019 | H19: 18121.29019 | I19: 4.499997885e-07
B20: US71654QBB77 | C20: 18.8031 | D20: 103.77389 | E20: 1000 | F20: 1951.270831 | G20: 19512.70831 | H20: 19512.70831 | I20: -4.100002116e-07
B21: US71656MBD02 | C21: 18.8031 | D21: 97.7675 | E21: 1000 | F21: 1838.332079 | G21: 18383.32079 | H21: 18383.32079 | I21: -4.999965313e-07
B22: USP14517AA73 | C22: 18.8031 | D22: 102.34833 | E22: 1000 | F22: 1924.465884 | G22: 19244.65884 | H22: 19244.65884 | I22: 2.300002961e-07
B23: USP3691NBF61 | C23: 18.8031 | D23: 97.25 | E23: 1000 | F23: 1828.601475 | G23: 18286.01475 | H23: 18286.01475 | I23: 0
B24: USP13296AL53 | C24: 18.8031 | D24: 100.98 | E24: 1000 | F24: 1898.737038 | G24: 18987.37038 | H24: 18987.37038 | I24: 0
B25: USP6629MAA01 | C25: 18.8031 | D25: 101.573 | E25: 1000 | F25: 1909.887276 | G25: 19098.87276 | H25: 19098.87276 | I25: 0

Sheet 20170428
D1: Caracteristicas 2 Mayo | H1: vector 28 Abr
B2: isin | C2: TC | D2: PRECIO MONEDA DE ORIGEN | E2: VALOR NOMINAL | F2: PRECIO EN MN | G2: PRECIO LIMPIO CALCULADO | H2: PRECIO VECTOR PRECIOS | I2: DIFERENCIA
B3: USP30179AJ79 | C3: 18.9594 | D3: 105.9 | E3: 1000 | F3: =C3*D3 -> 2007.80046 | G3: =(E3*F3)/100 -> 20078.0046 | H3: 20051.93542 | I3: =G3-H3 -> 26.069175
B4: USP30179AM09 | C4: 18.9594 | D4: 104.243 | E4: 1000 | F4: =C4*D4 -> 1976.384734 | G4: =(E4*F4)/100 -> 19763.84734 | H4: 19733.89149 | I4: =G4-H4 -> 29.955852
B5: US91086QAY44 | C5: 18.9594 | D5: 108.5 | E5: 2000 | F5: 2057.0949 | G5: 41141.898 | H5: 41122.9386 | I5: 18.9594
B6: US91086QAW87 | C6: 18.9594 | F6: 0 | G6: 0 | I6: 0
B7: US91086QBA58 | C7: 18.9594 | D7: 103.4 | E7: 2000 | F7: 1960.40196 | G7: 39208.0392 | H7: 39128.40972 | I7: 79.62948
B8: US91086QBC15 | C8: 18.9594 | D8: 105.45 | E8: 1000 | F8: 1999.26873 | G8: 20051.93542 | H8: 39412.04234 | I8: -19360.10692
B9: US91086QBD97 | C9: 18.9594 | D9: 104181 | E9: 1000 | F9: 1975209.251 | G9: 19733.89149 | H9: 19736.7354 | I9: -2.84391
B10: US91087BAA89 | C10: 18.9594 | D10: 108475 | E10: 2000 | F10: 2056620.915 | G10: 41122.9386 | H10: 19063.6767 | I10: 22059.2619
B11: US71656MBD02 | C11: 18.9594 | D11: 977.125 | E11: 1000 | F11: 18525.70372 | G11: 185257.0372 | H11: 18402.46763 | I11: 166854.5696
B12: US706451AG65 | C12: 18.9594 | D12: 116 | E12: 1000 | F12: 2199.2904 | G12: 21992.904 | H12: 21992.904 | I12: 0
B13: US71654QAX07 | C13: 18.9594 | D13: 10629.335 | E13: 1000 | F13: 201525.814 | G13: 2015258.14 | H13: 20135.26199 | I13: 1995122.878
B14: US706451BS94 | C14: 18.9594 | D14: 103.4 | E14: 1000 | F14: 1960.40196 | G14: 19604.0196 | H14: 19604.0196 | I14: 0
B15: US71654QBH48 | C15: 18.9594 | D15: 10159.209 | E15: 1000 | F15: 192612.5071 | G15: 1926125.071 | H15: 19213.58678 | I15: 1906911.484
B16: US71656MAS89 | C16: 18.9594 | D16: 10148.874 | E16: 1000 | F16: 192416.5617 | G16: 1924165.617 | H16: 19226.01656 | I16: 1904939.601
B17: US71656MAW91 | C17: 18.9594 | D17: 10103.887 | E17: 1000 | F17: 191563.6352 | G17: 1915636.352 | H17: 19145.51874 | I17: 1896490.833
B18: US71654QAW24 | C18: 18.9594 | D18: 1080.878 | E18: 1000 | F18: 20492.79835 | G18: 204927.9835 | H18: 20476.62598 | I18: 184451.3575
B19: US71654QBG64 | C19: 18.9594 | D19: 9602.667 | E19: 1000 | F19: 182060.8047 | G19: 1820608.047 | H19: 18139.07226 | I19: 1802468.975
B20: US71654QBB77 | C20: 18.9594 | D20: 10353.325 | E20: 1000 | F20: 196292.83 | G20: 1962928.3 | H20: 19603.54561 | I20: 1943324.754
B21: US71656MBD02 | C21: 18.9594 | D21: 977.125 | E21: 1000 | F21: 18525.70372 | G21: 185257.0372 | H21: 18402.46763 | I21: 166854.5696
B22: USP14517AA73 | C22: 18.9594 | D22: 102.272 | E22: 1000 | F22: 1939.015757 | G22: 19390.15757 | H22: 19396.20372 | I22: -6.046153
B23: USP3691NBF61 | C23: 18.9594 | D23: 97.25 | E23: 1000 | F23: 1843.80165 | G23: 18438.0165 | H23: 18362.1789 | I23: 75.8376
B24: USP13296AL53 | C24: 18.9594 | D24: 100.95 | E24: 1000 | F24: 1913.95143 | G24: 19139.5143 | H24: 19093.63255 | I24: 45.881748
B25: USP6629MAA01 | C25: 18.9594 | D25: 101.569 | E25: 1000 | F25: 1925.687299 | G25: 19256.87299 | H25: 19247.20369 | I25: 9.669294

Sheet 20170427
D1: Caracteristicas 28 Abril | H1: vector 27 Abr | K1: NO HAY DIFERENCIA
B2: isin | C2: TC | D2: PRECIO MONEDA DE ORIGEN | E2: VALOR NOMINAL | F2: PRECIO EN MN | G2: PRECIO LIMPIO CALCULADO | H2: PRECIO VECTOR PRECIOS | I2: DIFERENCIA
B3: USP30179AJ79 | C3: 19.067 | D3: 105.8 | E3: 1000 | F3: =C3*D3 -> 2017.2886 | G3: =(F3*E3)/100 -> 20172.886 | H3: 20172.886 | I3: =G3-H3 -> 0
B4: USP30179AM09 | C4: 19.067 | D4: 103.968 | E4: 1000 | F4: =C4*D4 -> 1982.357856 | G4: =(F4*E4)/100 -> 19823.57856 | H4: 19823.57856 | I4: =G4-H4 -> 0
B5: US91086QAY44 | C5: 19.067 | D5: 108.375 | E5: 2000 | F5: 2066.386125 | G5: 41327.7225 | H5: 41327.7225 | I5: 0
B6: US91086QAW87 | C6: 19.067 | F6: 0 | G6: 0 | I6: 0
B7: US91086QBA58 | C7: 19.067 | D7: 103.188 | E7: 2000 | F7: 1967.485596 | G7: 39349.71192 | H7: 39349.71192 | I7: 0
B8: US91086QBC15 | C8: 19.067 | D8: 103.813 | E8: 2000 | F8: 1979.402471 | G8: 39588.04942 | H8: 39588.04942 | I8: 0
B9: US91086QBD97 | C9: 19.067 | D9: 103.85 | E9: 1000 | F9: 1980.10795 | G9: 19801.0795 | H9: 19801.0795 | I9: 0
B10: US91087BAA89 | C10: 19.067 | D10: 100.3 | E10: 1000 | F10: 1912.4201 | G10: 19124.201 | H10: 19124.201 | I10: 0
B11: US71656MBD02 | C11: 19.067 | D11: 96.81798 | E11: 1000 | F11: 1846.028425 | G11: 18460.28425 | H11: 18460.28425 | I11: -3.999957698e-07
B12: US706451AG65 | C12: 19.067 | D12: 116 | E12: 1000 | F12: 2211.772 | G12: 22117.72 | H12: 22117.72 | I12: 0
B13: US71654QAX07 | C13: 19.067 | D13: 106.15 | E13: 1000 | F13: 2023.96205 | G13: 20239.6205 | H13: 20239.6205 | I13: 0
B14: US706451BS94 | C14: 19.067 | D14: 103.4 | E14: 1000 | F14: 1971.5278 | G14: 19715.278 | H14: 19715.278 | I14: 0
B15: US71654QBH48 | C15: 19.067 | D15: 101 | E15: 1000 | F15: 1925.767 | G15: 19257.67 | H15: 19257.67 | I15: 0
B16: US71656MAS89 | C16: 19.067 | D16: 101.44613 | E16: 1000 | F16: 1934.273361 | G16: 19342.73361 | H16: 19342.73361 | I16: 1.000007614e-07
B17: US71656MAW91 | C17: 19.067 | D17: 100.948 | E17: 1000 | F17: 1924.775516 | G17: 19247.75516 | H17: 19247.75516 | I17: 0
B18: US71654QAW24 | C18: 19.067 | D18: 108.0025 | E18: 1000 | F18: 2059.283667 | G18: 20592.83667 | H18: 20592.83667 | I18: 0
B19: US71654QBG64 | C19: 19.067 | D19: 95.50295 | E19: 1000 | F19: 1820.954748 | G19: 18209.54748 | H19: 18209.54748 | I19: -5.000001693e-07
B20: US71654QBB77 | C20: 19.067 | D20: 103.33152 | E20: 1000 | F20: 1970.222092 | G20: 19702.22092 | H20: 19702.22092 | I20: 4.000030458e-07
B21: US71656MBD02 | C21: 19.067 | D21: 96.81798 | E21: 1000 | F21: 1846.028425 | G21: 18460.28425 | H21: 18460.28425 | I21: -3.999957698e-07
B22: USP14517AA73 | C22: 19.067 | D22: 102.28125 | E22: 1000 | F22: 1950.196594 | G22: 19501.96594 | H22: 19501.96594 | I22: -5.000001693e-07
B23: USP3691NBF61 | C23: 19.067 | D23: 96.85 | E23: 1000 | F23: 1846.63895 | G23: 18466.3895 | H23: 18466.3895 | I23: 0
B24: USP13296AL53 | C24: 19.067 | D24: 100.56 | E24: 1000 | F24: 1917.37752 | G24: 19173.7752 | H24: 19173.7752 | I24: 0
B25: USP6629MAA01 | C25: 19.067 | D25: 101.414 | E25: 1000 | F25: 1933.660738 | G25: 19336.60738 | H25: 19336.60738 | I25: 0
D29: car.eurobonos 28 | G29: vector 27

Sheet 20170426
D1: Caracteristicas 27 Abril | H1: vector 26 Abr | K1: NO HAY DIFERENCIA
B2: isin | C2: TC | D2: PRECIO MONEDA DE ORIGEN | E2: VALOR NOMINAL | F2: PRECIO EN MN | G2: PRECIO LIMPIO CALCULADO | H2: PRECIO VECTOR PRECIOS | I2: DIFERENCIA
B3: USP30179AJ79 | C3: 19.1119 | D3: 105.85 | E3: 1000 | F3: =C3*D3 -> 2022.994615 | G3: =(E3*F3)/100 -> 20229.94615 | H3: 20229.94615 | I3: =G3-H3 -> 0
B4: USP30179AM09 | C4: 19.1119 | D4: 103.902 | E4: 1000 | F4: =C4*D4 -> 1985.764634 | G4: =(E4*F4)/100 -> 19857.64634 | H4: 19857.64634 | I4: =G4-H4 -> 0
B5: US91086QAY44 | C5: 19.1119 | D5: 108.375 | E5: 2000 | F5: 2071.252162 | G5: 41425.04325 | H5: 41425.04325 | I5: 0
B6: US91086QAW87 | C6: 19.1119 | F6: 0 | G6: 0 | H6: 41187.67345 | I6: -41187.67345
B7: US91086QBA58 | C7: 19.1119 | D7: 103 | E7: 2000 | F7: 1968.5257 | G7: 39370.514 | H7: 39370.514 | I7: 0
B8: US91086QBC15 | C8: 19.1119 | D8: 103.5 | E8: 2000 | F8: 1978.08165 | G8: 39561.633 | H8: 39561.633 | I8: 0
B9: US91086QBD97 | C9: 19.1119 | D9: 103.775 | E9: 1000 | F9: 1983.337423 | G9: 19833.37422 | H9: 19833.37422 | I9: 0
B10: US91087BAA89 | C10: 19.1119 | D10: 100.1 | E10: 1000 | F10: 1913.10119 | G10: 19131.0119 | H10: 19131.0119 | I10: 0
B11: US71656MBD02 | C11: 19.1119 | D11: 96.90067 | E11: 1000 | F11: 1851.955915 | G11: 18519.55915 | H11: 18519.55915 | I11: -2.699998731e-07
B12: US706451AG65 | C12: 19.1119 | D12: 116 | E12: 1000 | F12: 2216.9804 | G12: 22169.804 | H12: 22169.804 | I12: 0
B13: US71654QAX07 | C13: 19.1119 | D13: 106.19124 | E13: 1000 | F13: 2029.51636 | G13: 20295.1636 | H13: 20295.1636 | I13: -4.400026228e-07
B14: US706451BS94 | C14: 19.1119 | D14: 103.4 | E14: 1000 | F14: 1976.17046 | G14: 19761.7046 | H14: 19761.7046 | I14: 0
B15: US71654QBH48 | C15: 19.1119 | D15: 101.21676 | E15: 1000 | F15: 1934.444595 | G15: 19344.44595 | H15: 19344.44595 | I15: 4.399989848e-07
B16: US71656MAS89 | C16: 19.1119 | D16: 101.44633 | E16: 1000 | F16: 1938.832114 | G16: 19388.32114 | H16: 19388.32114 | I16: 2.699998731e-07
B17: US71656MAW91 | C17: 19.1119 | D17: 100.93292 | E17: 1000 | F17: 1929.019874 | G17: 19290.19874 | H17: 19290.19874 | I17: 4.799985618e-07
B18: US71654QAW24 | C18: 19.1119 | D18: 107.96262 | E18: 1000 | F18: 2063.370797 | G18: 20633.70797 | H18: 20633.70797 | I18: -2.199994924e-07
B19: US71654QBG64 | C19: 19.1119 | D19: 95.59802 | E19: 1000 | F19: 1827.059798 | G19: 18270.59798 | H19: 18270.59798 | I19: 3.800014383e-07
B20: US71654QBB77 | C20: 19.1119 | D20: 103.38034 | E20: 1000 | F20: 1975.79472 | G20: 19757.9472 | H20: 19757.9472 | I20: 4.600005923e-07
B21: US71656MBD02 | C21: 19.1119 | D21: 96.90067 | E21: 1000 | F21: 1851.955915 | G21: 18519.55915 | H21: 18519.55915 | I21: -2.699998731e-07
B22: USP14517AA73 | C22: 19.1119 | D22: 102.20222 | E22: 1000 | F22: 1953.278608 | G22: 19532.78608 | H22: 19532.78608 | I22: 1.799962774e-07
B23: USP3691NBF61 | C23: 19.1119 | D23: 96.756 | E23: 1000 | F23: 1849.190996 | G23: 18491.90996 | H23: 18491.90996 | I23: 0
B24: USP13296AL53 | C24: 19.1119 | D24: 100.496 | E24: 1000 | F24: 1920.669502 | G24: 19206.69502 | H24: 19206.69502 | I24: 0
B25: USP6629MAA01 | C25: 19.1119 | D25: 101.389 | E25: 1000 | F25: 1937.736429 | G25: 19377.36429 | H25: 19377.36429 | I25: 0
D29: car.eurobonos 27 | G29: vector 26

Sheet 20170425
D1: Caracteristicas 26 Abril | H1: vector 25 Abr | K1: NO HAY DIFERENCIA
B2: isin | C2: TC | D2: PRECIO MONEDA DE ORIGEN | E2: VALOR NOMINAL | F2: PRECIO EN MN | G2: PRECIO LIMPIO CALCULADO | H2: PRECIO VECTOR PRECIOS | I2: DIFERENCIA
B3: USP30179AJ79 | C3: 18.9225 | D3: 105.85 | E3: 1000 | F3: =C3*D3 -> 2002.946625 | G3: =(E3*F3)/100 -> 20029.46625 | H3: 20029.46625 | I3: =G3-H3 -> 0
B4: USP30179AM09 | C4: 18.9225 | D4: 104.146 | E4: 1000 | F4: =C4*D4 -> 1970.702685 | G4: =(E4*F4)/100 -> 19707.02685 | H4: 19707.02685 | I4: =G4-H4 -> 0
B5: US91086QAY44 | C5: 18.9225 | D5: 108.3 | E5: 2000 | F5: 2049.30675 | G5: 40986.135 | H5: 40986.135 | I5: 0
B6: US91086QAW87 | C6: 18.9225 | D6: 107.5 | E6: 2000 | F6: 2034.16875 | G6: 40683.375 | H6: 40683.375 | I6: 0
B7: US91086QBA58 | C7: 18.9225 | D7: 103.1 | E7: 2000 | F7: 1950.90975 | G7: 39018.195 | H7: 39018.195 | I7: 0
B8: US91086QBC15 | C8: 18.9225 | D8: 104 | E8: 2000 | F8: 1967.94 | G8: 39358.8 | H8: 39358.8 | I8: 0
B9: US91086QBD97 | C9: 18.9225 | D9: 103.9 | E9: 1000 | F9: 1966.04775 | G9: 19660.4775 | H9: 19660.4775 | I9: 0
B10: US91087BAA89 | C10: 18.9225 | D10: 100.25 | E10: 1000 | F10: 1896.980625 | G10: 18969.80625 | H10: 18969.80625 | I10: 0
B11: US71656MBD02 | C11: 18.9225 | D11: 97.0425 | E11: 1000 | F11: 1836.286706 | G11: 18362.86706 | H11: 18362.86706 | I11: -5.000001693e-07
B12: US706451AG65 | C12: 18.9225 | D12: 116 | E12: 1000 | F12: 2195.01 | G12: 21950.1 | H12: 21950.1 | I12: 0
B13: US71654QAX07 | C13: 18.9225 | D13: 106.25467 | E13: 1000 | F13: 2010.603993 | G13: 20106.03993 | H13: 20106.03993 | I13: -2.499982656e-07
B14: US706451BS94 | C14: 18.9225 | D14: 103.4 | E14: 1000 | F14: 1956.5865 | G14: 19565.865 | H14: 19565.865 | I14: 0
B15: US71654QBH48 | C15: 18.9225 | D15: 101.38773 | E15: 1000 | F15: 1918.509321 | G15: 19185.09321 | H15: 19185.09321 | I15: 2.500019036e-07
B16: US71656MAS89 | C16: 18.9225 | D16: 101.48442 | E16: 1000 | F16: 1920.338937 | G16: 19203.38937 | H16: 19203.38937 | I16: -4.999965313e-07
B17: US71656MAW91 | C17: 18.9225 | D17: 100.98 | E17: 1000 | F17: 1910.79405 | G17: 19107.9405 | H17: 19107.9405 | I17: 0
B18: US71654QAW24 | C18: 18.9225 | D18: 107.99386 | E18: 1000 | F18: 2043.513816 | G18: 20435.13816 | H18: 20435.13816 | I18: -5.000001693e-07
B19: US71654QBG64 | C19: 18.9225 | D19: 95.70965 | E19: 1000 | F19: 1811.065852 | G19: 18110.65852 | H19: 18110.65852 | I19: 2.499946277e-07
B20: US71654QBB77 | C20: 18.9225 | D20: 103.4625 | E20: 1000 | F20: 1957.769156 | G20: 19577.69156 | H20: 19577.69156 | I20: -4.999965313e-07
B21: US71656MBD02 | C21: 18.9225 | D21: 97.0425 | E21: 1000 | F21: 1836.286706 | G21: 18362.86706 | H21: 18362.86706 | I21: -5.000001693e-07
B22: USP14517AA73 | C22: 18.9225 | D22: 102.254 | E22: 1000 | F22: 1934.901315 | G22: 19349.01315 | H22: 19349.01315 | I22: 0
B23: USP3691NBF61 | C23: 18.9225 | D23: 96.55 | E23: 1000 | F23: 1826.967375 | G23: 18269.67375 | H23: 18269.67375 | I23: 0
B24: USP13296AL53 | C24: 18.9225 | D24: 100.5 | E24: 1000 | F24: 1901.71125 | G24: 19017.1125 | H24: 19017.1125 | I24: 0
B25: USP6629MAA01 | C25: 18.9225 | D25: 101.85 | E25: 1000 | F25: 1927.256625 | G25: 19272.56625 | H25: 19272.56625 | I25: 0
D28: car.eurobonos 26 | G28: vector 25

Sheet 20170424
D1: Caracteristicas 25 Abril | H1: vector 24 Abr | K1: NO HAY DIFERENCIA
B2: isin | C2: TC | D2: PRECIO MONEDA DE ORIGEN | E2: VALOR NOMINAL | F2: PRECIO EN MN | G2: PRECIO LIMPIO CALCULADO | H2: PRECIO VECTOR PRECIOS | I2: DIFERENCIA
B3: USP30179AJ79 | C3: 18.6521 | D3: 105.9 | E3: 1000 | F3: =C3*D3 -> 1975.25739 | G3: =(E3*F3)/100 -> 19752.5739 | H3: 19752.5739 | I3: =G3-H3 -> 0
B4: USP30179AM09 | C4: 18.6521 | D4: 104.284 | E4: 1000 | F4: =C4*D4 -> 1945.115596 | G4: =(E4*F4)/100 -> 19451.15596 | H4: 19451.15596 | I4: =G4-H4 -> 0
B5: US91086QAY44 | C5: 18.6521 | D5: 108.3 | E5: 2000 | F5: 2020.02243 | G5: 40400.4486 | H5: 40400.4486 | I5: 0
B6: US91086QAW87 | C6: 18.6521 | D6: 107.7 | E6: 2000 | F6: 2008.83117 | G6: 40176.6234 | H6: 40176.6234 | I6: 0
B7: US91086QBA58 | C7: 18.6521 | D7: 103.35 | E7: 2000 | F7: 1927.694535 | G7: 38553.8907 | H7: 38553.8907 | I7: 0
B8: US91086QBC15 | C8: 18.6521 | D8: 104 | E8: 2000 | F8: 1939.8184 | G8: 38796.368 | H8: 38796.368 | I8: 0
B9: US91086QBD97 | C9: 18.6521 | D9: 104.1 | E9: 1000 | F9: 1941.68361 | G9: 19416.8361 | H9: 19416.8361 | I9: 0
B10: US91087BAA89 | C10: 18.6521 | D10: 100.47 | E10: 1000 | F10: 1873.976487 | G10: 18739.76487 | H10: 18739.76487 | I10: 0
B11: US71656MBD02 | C11: 18.6521 | D11: 97.6078 | E11: 1000 | F11: 1820.590446 | G11: 18205.90446 | H11: 18205.90446 | I11: -1.999978849e-07
B12: US706451AG65 | C12: 18.6521 | D12: 116 | E12: 1000 | F12: 2163.6436 | G12: 21636.436 | H12: 21636.436 | I12: 0
B13: US71654QAX07 | C13: 18.6521 | D13: 106.3125 | E13: 1000 | F13: 1982.951381 | G13: 19829.51381 | H13: 19829.51381 | I13: -5.000001693e-07
B14: US706451BS94 | C14: 18.6521 | D14: 103.4 | E14: 1000 | F14: 1928.62714 | G14: 19286.2714 | H14: 19286.2714 | I14: 0
B15: US71654QBH48 | C15: 18.6521 | D15: 101.395 | E15: 1000 | F15: 1891.229679 | G15: 18912.2968 | H15: 18912.29679 | I15: 0
B16: US71656MAS89 | C16: 18.6521 | D16: 101.54068 | E16: 1000 | F16: 1893.946917 | G16: 18939.46917 | H16: 18939.46917 | I16: 2.799970389e-07
B17: US71656MAW91 | C17: 18.6521 | D17: 101.046 | E17: 1000 | F17: 1884.720097 | G17: 18847.20097 | H17: 18847.20097 | I17: 0
B18: US71654QAW24 | C18: 18.6521 | D18: 108.0595 | E18: 1000 | F18: 2015.5366 | G18: 20155.366 | H18: 20155.366 | I18: -5.000038072e-07
B19: US71654QBG64 | C19: 18.6521 | D19: 96.0175 | E19: 1000 | F19: 1790.928012 | G19: 17909.28012 | H19: 17909.28012 | I19: -4.999965313e-07
B20: US71654QBB77 | C20: 18.6521 | D20: 103.8125 | E20: 1000 | F20: 1936.321131 | G20: 19363.21131 | H20: 19363.21131 | I20: -5.000001693e-07
B21: US71656MBD02 | C21: 18.6521 | D21: 97.6078 | E21: 1000 | F21: 1820.590446 | G21: 18205.90446 | H21: 18205.90446 | I21: -1.999978849e-07
B22: USP14517AA73 | C22: 18.6521 | D22: 102.20573 | E22: 1000 | F22: 1906.351497 | G22: 19063.51497 | H22: 19063.51496 | I22: 3.300046956e-07
B23: USP3691NBF61 | C23: 18.6521 | D23: 96.875 | E23: 1000 | F23: 1806.922188 | G23: 18069.22187 | H23: 18069.22187 | I23: 0
B24: USP13296AL53 | C24: 18.6521 | D24: 100.5 | E24: 1000 | F24: 1874.53605 | G24: 18745.3605 | H24: 18745.3605 | I24: 0
B25: USP6629MAA01 | C25: 18.6521 | D25: 101.85 | E25: 1000 | F25: 1899.716385 | G25: 18997.16385 | H25: 18997.16385 | I25: 0
D27: car.eurobonos 25 | G27: vector 24

Sheet 20170421
D1: Caracteristicas 24 Abril | H1: vector 21 Abr | K1: NO HAY DIFERENCIA
B2: isin | C2: TC | D2: PRECIO MONEDA DE ORIGEN | E2: VALOR NOMINAL | F2: PRECIO EN MN | G2: PRECIO LIMPIO CALCULADO | H2: PRECIO VECTOR PRECIOS | I2: DIFERENCIA
B3: USP30179AJ79 | C3: 18.8413 | D3: 105.84 | E3: 1000 | F3: =C3*D3 -> 1994.163192 | G3: =(F3*E3)/100 -> 19941.63192 | H3: 19941.63192 | I3: =G3-H3 -> 0
B4: USP30179AM09 | C4: 18.8413 | D4: 104.258 | E4: 1000 | F4: =C4*D4 -> 1964.356255 | G4: =(F4*E4)/100 -> 19643.56255 | H4: 19643.56255 | I4: =G4-H4 -> 0
B5: US91086QAY44 | C5: 18.8413 | D5: 108.3 | E5: 2000 | F5: 2040.51279 | G5: 40810.2558 | H5: 40810.2558 | I5: 0
B6: US91086QAW87 | C6: 18.8413 | D6: 107.75 | E6: 2000 | F6: 2030.150075 | G6: 40603.0015 | H6: 40603.0015 | I6: 0
B7: US91086QBA58 | C7: 18.8413 | D7: 103.3 | E7: 2000 | F7: 1946.30629 | G7: 38926.1258 | H7: 38926.1258 | I7: 0
B8: US91086QBC15 | C8: 18.8413 | D8: 103.65 | E8: 2000 | F8: 1952.900745 | G8: 39058.0149 | H8: 39058.0149 | I8: 0
B9: US91086QBD97 | C9: 18.8413 | D9: 104 | E9: 1000 | F9: 1959.4952 | G9: 19594.952 | H9: 19594.952 | I9: 0
B10: US91087BAA89 | C10: 18.8413 | D10: 100.4 | E10: 1000 | F10: 1891.66652 | G10: 18916.6652 | H10: 18916.6652 | I10: 0
B11: US71656MBD02 | C11: 18.8413 | D11: 97.42118 | E11: 1000 | F11: 1835.541679 | G11: 18355.41679 | H11: 18355.41679 | I11: 3.400054993e-07
B12: US706451AG65 | C12: 18.8413 | D12: 116 | E12: 1000 | F12: 2185.5908 | G12: 21855.908 | H12: 21855.908 | I12: 0
B13: US71654QAX07 | C13: 18.8413 | D13: 106.26645 | E13: 1000 | F13: 2002.198064 | G13: 20021.98064 | H13: 20021.98064 | I13: -1.499975042e-07
B14: US706451BS94 | C14: 18.8413 | D14: 103.4 | E14: 1000 | F14: 1948.19042 | G14: 19481.9042 | H14: 19481.9042 | I14: 0
B15: US71654QBH48 | C15: 18.8413 | D15: 101.53045 | E15: 1000 | F15: 1912.965668 | G15: 19129.65668 | H15: 19129.65668 | I15: -1.499975042e-07
B16: US71656MAS89 | C16: 18.8413 | D16: 101.66875 | E16: 1000 | F16: 1915.571419 | G16: 19155.71419 | H16: 19155.71419 | I16: -2.499982656e-07
B17: US71656MAW91 | C17: 18.8413 | D17: 101.15 | E17: 1000 | F17: 1905.797495 | G17: 19057.97495 | H17: 19057.97495 | I17: 0
B18: US71654QAW24 | C18: 18.8413 | D18: 108.02632 | E18: 1000 | F18: 2035.356303 | G18: 20353.56303 | H18: 20353.56303 | I18: 1.600019459e-07
B19: US71654QBG64 | C19: 18.8413 | D19: 95.7875 | E19: 1000 | F19: 1804.761024 | G19: 18047.61024 | H19: 18047.61024 | I19: -5.000001693e-07
B20: US71654QBB77 | C20: 18.8413 | D20: 103.4 | E20: 1000 | F20: 1948.19042 | G20: 19481.9042 | H20: 19481.9042 | I20: 0
B21: US71656MBD02 | C21: 18.8413 | D21: 97.42118 | E21: 1000 | F21: 1835.541679 | G21: 18355.41679 | H21: 18355.41679 | I21: 3.400054993e-07
B22: USP14517AA73 | C22: 18.8413 | D22: 102.0795 | E22: 1000 | F22: 1923.310483 | G22: 19233.10483 | H22: 19233.10483 | I22: -5.000038072e-07
B23: USP3691NBF61 | C23: 18.8413 | D23: 96.5 | E23: 1000 | F23: 1818.18545 | G23: 18181.8545 | H23: 18181.8545 | I23: 0
B24: USP13296AL53 | C24: 18.8413 | D24: 100.6 | E24: 1000 | F24: 1895.43478 | G24: 18954.3478 | H24: 18954.3478 | I24: 0
B25: USP6629MAA01 | C25: 18.8413 | D25: 101.5 | E25: 1000 | F25: 1912.39195 | G25: 19123.9195 | H25: 19123.9195 | I25: 0
D27: car.eurobonos 24 | G27: vector 21

Sheet 20170420
D1: Aquí comparando los dos archivos del mismo día 20 Abr (características y vector), no hay diferencia) | J1: Comparando el vector del 20 con el de características del 19 hay diferencias
D3: Caracteristicas 20 Abril | H3: vector 20 Abr | J3: Caracteristicas 19 Abril | N3: vector 20 Abr
B4: isin | C4: TC | D4: PRECIO MONEDA DE ORIGEN | E4: VALOR NOMINAL | F4: PRECIO EN MN | G4: PRECIO LIMPIO CALCULADO | H4: PRECIO VECTOR PRECIOS | I4: DIFERENCIA | J4: PRECIO MONEDA DE ORIGEN | K4: VALOR NOMINAL | L4: PRECIO EN MN | M4: PRECIO LIMPIO CALCULADO | N4: DIFERENCIA
B5: USP30179AJ79 | C5: 18.8187 | D5: 105.6 | E5: 1000 | F5: =C5*D5 -> 1987.25472 | G5: =(F5*E5)/100 -> 19872.5472 | H5: 19872.5472 | I5: =G5-H5 -> 0 | J5: 105.635 | K5: 1000 | L5: =J5*C5 -> 1987.913375 | M5: =(L5*K5)/100 -> 19879.13375 | N5: =M5-H5 -> 6.586545
B6: USP30179AM09 | C6: 18.8187 | D6: 104.142 | E6: 1000 | F6: =C6*D6 -> 1959.817055 | G6: =(F6*E6)/100 -> 19598.17055 | H6: 19598.17055 | I6: =G6-H6 -> 0 | J6: 104.067 | K6: 1000 | L6: =J6*C6 -> 1958.405653 | M6: =(L6*K6)/100 -> 19584.05653 | N6: =M6-H6 -> -14.114025
B7: US91086QAY44 | C7: 18.8187 | D7: 108.425 | E7: 2000 | F7: 2040.417547 | G7: 40808.35095 | H7: 40808.35095 | I7: 0 | J7: 108.475 | K7: 2000 | L7: 2041.358482 | M7: 40827.16965 | N7: 18.8187
B8: US91086QAW87 | C8: 18.8187 | D8: 107.697 | E8: 2000 | F8: 2026.717534 | G8: 40534.35068 | H8: 40534.35068 | I8: 0 | J8: 107.715 | K8: 2000 | L8: 2027.05627 | M8: 40541.12541 | N8: 6.774732
B9: US91086QBA58 | C9: 18.8187 | D9: 103.33 | E9: 2000 | F9: 1944.536271 | G9: 38890.72542 | H9: 38890.72542 | I9: 0 | J9: 103.325 | K9: 2000 | L9: 1944.442178 | M9: 38888.84355 | N9: -1.88187
B10: US91086QBC15 | C10: 18.8187 | D10: 103.725 | E10: 2000 | F10: 1951.969657 | G10: 39039.39315 | H10: 39039.39315 | I10: 0 | J10: 103.825 | K10: 2000 | L10: 1953.851527 | M10: 39077.03055 | N10: 37.6374
B11: US91086QBD97 | C11: 18.8187 | D11: 103.7 | E11: 1000 | F11: 1951.49919 | G11: 19514.9919 | H11: 19514.9919 | I11: 0 | J11: 103.825 | K11: 1000 | L11: 1953.851527 | M11: 19538.51528 | N11: 23.523375
B12: US91087BAA89 | C12: 18.8187 | D12: 100.5 | E12: 1000 | F12: 1891.27935 | G12: 18912.7935 | H12: 18912.7935 | I12: 0 | J12: 100.875 | K12: 1000 | L12: 1898.336362 | M12: 18983.36363 | N12: 70.570125
B13: US71656MBD02 | C13: 18.8187 | D13: 97.4625 | E13: 1000 | F13: 1834.117549 | G13: 18341.17549 | H13: 18341.17549 | I13: -4.999965313e-07 | J13: 97.6125 | K13: 1000 | L13: 1836.940354 | M13: 18369.40354 | N13: 28.2280495
B14: US706451AG65 | C14: 18.8187 | D14: 116 | E14: 1000 | F14: 2182.9692 | G14: 21829.692 | H14: 21829.692 | I14: 0 | J14: 116 | K14: 1000 | L14: 2182.9692 | M14: 21829.692 | N14: 0
B15: US71654QAX07 | C15: 18.8187 | D15: 106.27541 | E15: 1000 | F15: 1999.965058 | G15: 19999.65058 | H15: 19999.65058 | I15: -3.300010576e-07 | J15: 106.1825 | K15: 1000 | L15: 1998.216613 | M15: 19982.16613 | N15: -17.4844545
B16: US706451BS94 | C16: 18.8187 | D16: 103.48 | E16: 1000 | F16: 1947.359076 | G16: 19473.59076 | H16: 19473.59076 | I16: 0 | J16: 103.475 | K16: 1000 | L16: 1947.264982 | M16: 19472.64983 | N16: -0.940935
B17: US71654QBH48 | C17: 18.8187 | D17: 101.45192 | E17: 1000 | F17: 1909.193247 | G17: 19091.93247 | H17: 19091.93247 | I17: 3.999957698e-08 | J17: 101.75 | K17: 1000 | L17: 1914.802725 | M17: 19148.02725 | N17: 56.094781
B18: US71656MAS89 | C18: 18.8187 | D18: 101.66875 | E18: 1000 | F18: 1913.273706 | G18: 19132.73706 | H18: 19132.73706 | I18: 2.499982656e-07 | J18: 101.75771 | K18: 1000 | L18: 1914.947817 | M18: 19149.47817 | N18: 16.74111577
B19: US71656MAW91 | C19: 18.8187 | D19: 101.15 | E19: 1000 | F19: 1903.511505 | G19: 19035.11505 | H19: 19035.11505 | I19: 0 | J19: 101.0274 | K19: 1000 | L19: 1901.204332 | M19: 19012.04332 | N19: -23.0717262
B20: US71654QAW24 | C20: 18.8187 | D20: 107.9 | E20: 1000 | F20: 2030.53773 | G20: 20305.3773 | H20: 20305.3773 | I20: 0 | J20: 108.03679 | K20: 1000 | L20: 2033.11194 | M20: 20331.1194 | N20: 25.74209973
B21: US71654QBG64 | C21: 18.8187 | D21: 95.6875 | E21: 1000 | F21: 1800.714356 | G21: 18007.14356 | H21: 18007.14356 | I21: -5.000001693e-07 | J21: 95.84 | K21: 1000 | L21: 1803.584208 | M21: 18035.84208 | N21: 28.698517
B22: US71654QBB77 | C22: 18.8187 | D22: 103.04 | E22: 1000 | F22: 1939.078848 | G22: 19390.78848 | H22: 19390.78848 | I22: 0 | J22: 103.46656 | K22: 1000 | L22: 1947.106153 | M22: 19471.06153 | N22: 80.27304672
B23: US71656MBD02 | C23: 18.8187 | D23: 97.4625 | E23: 1000 | F23: 1834.117549 | G23: 18341.17549 | H23: 18341.17549 | I23: -4.999965313e-07 | J23: 97.6125 | K23: 1000 | L23: 1836.940354 | M23: 18369.40354 | N23: 28.2280495
B24: USP14517AA73 | C24: 18.8187 | D24: 102.17333 | E24: 1000 | F24: 1922.769245 | G24: 19227.69245 | H24: 19227.69245 | I24: -2.899978426e-07 | J24: 102.0525 | K24: 1000 | L24: 1920.495382 | M24: 19204.95382 | N24: -22.7386355
B25: USP3691NBF61 | C25: 18.8187 | D25: 96.75 | E25: 1000 | F25: 1820.709225 | G25: 18207.09225 | H25: 18207.09225 | I25: 0 | J25: 96.85 | K25: 1000 | L25: 1822.591095 | M25: 18225.91095 | N25: 18.8187
B26: USP13296AL53 | C26: 18.8187 | D26: 100.315 | E26: 1000 | F26: 1887.79789 | G26: 18877.9789 | H26: 18877.9789 | I26: 0 | J26: 100.25 | K26: 1000 | L26: 1886.574675 | M26: 18865.74675 | N26: -12.232155
B27: USP6629MAA01 | C27: 18.8187 | D27: 101.625 | E27: 1000 | F27: 1912.450388 | G27: 19124.50387 | H27: 19124.50387 | I27: 0 | J27: 101.625 | K27: 1000 | L27: 1912.450388 | M27: 19124.50387 | N27: 0
B30: Los valores provienen de los archivos (vector y características) del 20 de Abril
B32: vector 20
B33: caracteristicas del 19

Sheet 20170419
D1: Aquí comparando los dos archivos del mismo día 19 Abr (características y vector), no hay diferencia) | J1: Comparando el vector del 19 con el de características del 18 hay diferencias
D3: Caracteristicas 19 Abril | H3: vector 19 Abr | J3: Caracteristicas 18 Abril | N3: vector 19 Abr
B4: isin | C4: TC | D4: PRECIO MONEDA DE ORIGEN | E4: VALOR NOMINAL | F4: PRECIO EN MN | G4: PRECIO LIMPIO CALCULADO | H4: PRECIO VECTOR PRECIOS | I4: DIFERENCIA | J4: PRECIO MONEDA DE ORIGEN | K4: VALOR NOMINAL | L4: PRECIO EN MN | M4: PRECIO LIMPIO CALCULADO | N4: DIFERENCIA
B5: USP30179AJ79 | C5: 18.8374 | D5: 105.635 | E5: 1000 | F5: =C5*D5 -> 1989.888749 | G5: =(F5*E5)/100 -> 19898.88749 | H5: 19898.88749 | I5: =G5-H5 -> 0 | J5: 105.45 | K5: 1000 | L5: =J5*C5 -> 1986.40383 | M5: =(L5*K5)/100 -> 19864.0383 | N5: =M5-H5 -> -34.84919
B6: USP30179AM09 | C6: 18.8374 | D6: 104.067 | E6: 1000 | F6: =C6*D6 -> 1960.351706 | G6: =(F6*E6)/100 -> 19603.51706 | H6: 19603.51706 | I6: =G6-H6 -> 0 | J6: 104.181 | K6: 1000 | L6: =J6*C6 -> 1962.499169 | M6: =(L6*K6)/100 -> 19624.99169 | N6: =M6-H6 -> 21.474636
B7: US91086QAY44 | C7: 18.8374 | D7: 108.475 | E7: 2000 | F7: 2043.386965 | G7: 40867.7393 | H7: 40867.7393 | I7: 0 | J7: 108.475 | K7: 2000 | L7: 2043.386965 | M7: 40867.7393 | N7: 0
B8: US91086QAW87 | C8: 18.8374 | D8: 107.715 | E8: 2000 | F8: 2029.070541 | G8: 40581.41082 | H8: 40581.41082 | I8: 0 | J8: 107.75 | K8: 2000 | L8: 2029.72985 | M8: 40594.597 | N8: 13.18618
B9: US91086QBA58 | C9: 18.8374 | D9: 103.325 | E9: 2000 | F9: 1946.374355 | G9: 38927.4871 | H9: 38927.4871 | I9: 0 | J9: 103.35 | K9: 2000 | L9: 1946.84529 | M9: 38936.9058 | N9: 9.4187
B10: US91086QBC15 | C10: 18.8374 | D10: 103.825 | E10: 2000 | F10: 1955.793055 | G10: 39115.8611 | H10: 39115.8611 | I10: 0 | J10: 103.825 | K10: 2000 | L10: 1955.793055 | M10: 39115.8611 | N10: 0
B11: US91086QBD97 | C11: 18.8374 | D11: 103.825 | E11: 1000 | F11: 1955.793055 | G11: 19557.93055 | H11: 19557.93055 | I11: 0 | J11: 103.825 | K11: 1000 | L11: 1955.793055 | M11: 19557.93055 | N11: 0
B12: US91087BAA89 | C12: 18.8374 | D12: 100.875 | E12: 1000 | F12: 1900.222725 | G12: 19002.22725 | H12: 19002.22725 | I12: 0 | J12: 100.875 | K12: 1000 | L12: 1900.222725 | M12: 19002.22725 | N12: 0
B13: US71656MBD02 | C13: 18.8374 | D13: 97.6125 | E13: 1000 | F13: 1838.765707 | G13: 18387.65707 | H13: 18387.65707 | I13: 0 | J13: 96.43321 | K13: 1000 | L13: 1816.55095 | M13: 18165.5095 | N13: -222.1475745
B14: US706451AG65 | C14: 18.8374 | D14: 116 | E14: 1000 | F14: 2185.1384 | G14: 21851.384 | H14: 21851.384 | I14: 0 | J14: 117 | K14: 1000 | L14: 2203.9758 | M14: 22039.758 | N14: 188.374
B15: US71654QAX07 | C15: 18.8374 | D15: 106.1825 | E15: 1000 | F15: 2000.202225 | G15: 20002.02225 | H15: 20002.02225 | I15: 0 | J15: 106.08731 | K15: 1000 | L15: 1998.409093 | M15: 19984.09093 | N15: -17.93132106
B16: US706451BS94 | C16: 18.8374 | D16: 103.475 | E16: 1000 | F16: 1949.199965 | G16: 19491.99965 | H16: 19491.99965 | I16: 0 | J16: 103.25 | K16: 1000 | L16: 1944.96155 | M16: 19449.6155 | N16: -42.38415
B17: US71654QBH48 | C17: 18.8374 | D17: 101.75 | E17: 1000 | F17: 1916.70545 | G17: 19167.0545 | H17: 19167.0545 | I17: 0 | J17: 101.08583 | K17: 1000 | L17: 1904.194214 | M17: 19041.94214 | N17: -125.1123596
B18: US71656MAS89 | C18: 18.8374 | D18: 101.75771 | E18: 1000 | F18: =C18*D18 -> 1916.850686 | G18: =(F18*E18)/100 -> 19168.50686 | H18: 19168.50686 | I18: -4.600005923e-07 | J18: 101.5375 | K18: 1000 | L18: 1912.702502 | M18: 19127.02502 | N18: -41.481839
B19: US71656MAW91 | C19: 18.8374 | D19: 101.0274 | E19: 1000 | F19: 1903.093545 | G19: 19030.93545 | H19: 19030.93545 | I19: -3.999994078e-07 | J19: 100.91944 | K19: 1000 | L19: 1901.059859 | M19: 19010.59859 | N19: -20.33685744
B20: US71654QAW24 | C20: 18.8374 | D20: 108.03679 | E20: 1000 | F20: 2035.132228 | G20: 20351.32228 | H20: 20351.32228 | I20: 4.600005923e-07 | J20: 107.76308 | K20: 1000 | L20: 2029.976243 | M20: 20299.76243 | N20: -51.55984708
B21: US71654QBG64 | C21: 18.8374 | D21: 95.84 | E21: 1000 | F21: 1805.376416 | G21: 18053.76416 | H21: 18053.76416 | I21: 0 | J21: 95.4425 | K21: 1000 | L21: 1797.888549 | M21: 17978.88549 | N21: -74.878665
B22: US71654QBB77 | C22: 18.8374 | D22: 103.46656 | E22: 1000 | F22: 1949.040977 | G22: 19490.40977 | H22: 19490.40977 | I22: 4.399989848e-07 | J22: 103.15 | K22: 1000 | L22: 1943.07781 | M22: 19430.7781 | N22: -59.631673
B23: US71656MBD02 | C23: 18.8374 | D23: 97.6125 | E23: 1000 | F23: 1838.765707 | G23: 18387.65707 | H23: 18387.65707 | I23: 0 | J23: 96.43321 | K23: 1000 | L23: 1816.55095 | M23: 18165.5095 | N23: -222.1475745
B24: USP14517AA73 | C24: 18.8374 | D24: 102.0525 | E24: 1000 | F24: 1922.403763 | G24: 19224.03763 | H24: 19224.03764 | I24: 0 | J24: 101.84375 | K24: 1000 | L24: 1918.471456 | M24: 19184.71456 | N24: -39.3230725
B25: USP3691NBF61 | C25: 18.8374 | D25: 96.85 | E25: 1000 | F25: 1824.40219 | G25: 18244.0219 | H25: 18244.0219 | I25: 0 | J25: 96.8 | K25: 1000 | L25: 1823.46032 | M25: 18234.6032 | N25: -9.4187
B26: USP13296AL53 | C26: 18.8374 | D26: 100.25 | E26: 1000 | F26: 1888.44935 | G26: 18884.4935 | H26: 18884.4935 | I26: 0 | J26: 100.28 | K26: 1000 | L26: 1889.014472 | M26: 18890.14472 | N26: 5.65122
B27: USP6629MAA01 | C27: 18.8374 | D27: 101.625 | E27: 1000 | F27: 1914.350775 | G27: 19143.50775 | H27: 19143.50775 | I27: 0 | J27: 101.25 | K27: 1000 | L27: 1907.28675 | M27: 19072.8675 | N27: -70.64025
B31: Los valores provienen de los archivos (vector y características) del 19 de Abril
B32: vector del 19
B33: caracteristicas 18

Sheet 20170418
D1: Aquí comparando los dos archivos del mismo día 18 Abr (características y vector), no hay diferencia) | J1: Comparando el vector del 18 con el de características del 17 hay diferencias
D3: Caracteristicas 18 Abril | H3: vector 18 Abr | J3: Caracteristicas 17 Abril | N3: vector 18 Abr
B4: isin | C4: TC | D4: PRECIO MONEDA DE ORIGEN | E4: VALOR NOMINAL | F4: PRECIO EN MN | G4: PRECIO LIMPIO CALCULADO | H4: PRECIO LIMPIO VECTOR PRECIOS | I4: DIFERENCIA | J4: PRECIO MONEDA DE ORIGEN | K4: VALOR NOMINAL | L4: PRECIO EN MN | M4: PRECIO LIMPIO CALCULADO | N4: DIFERENCIA
B5: USP30179AJ79 | C5: 18.4863 | D5: 105.45 | E5: 1000 | F5: =C5*D5 -> 1949.380335 | G5: =(F5*E5)/100 -> 19493.80335 | H5: 19521.95983 | I5: =G5-H5 -> -28.156484 | J5: 105.45 | K5: 1000 | L5: =J5*C5 -> 1949.380335 | M5: =(K5*L5)/100 -> 19493.80335 | N5: =M5-H5 -> -28.156484
B6: USP30179AM09 | C6: 18.4863 | D6: 104.181 | E6: 1000 | F6: =C6*D6 -> 1925.92122 | G6: =(F6*E6)/100 -> 19259.2122 | H6: 19242.7594 | I6: =G6-H6 -> 16.452807 | J6: 104181 | K6: 1000 | L6: =J6*C6 -> 1925921.22 | M6: =(K6*L6)/100 -> 19259212.2 | N6: =M6-H6 -> 19239969.44
B7: US91086QAY44 | C7: 18.4863 | D7: 108.475 | E7: 2000 | F7: 2005.301392 | G7: 40106.02785 | H7: 40106.02785 | I7: 0 | J7: 108475 | K7: 2000 | L7: 2005301.393 | M7: 40106027.85 | N7: 40065921.82
B8: US91086QAW87 | C8: 18.4863 | D8: 107.75 | E8: 2000 | F8: 1991.898825 | G8: 39837.9765 | H8: 39837.9765 | I8: 0 | J8: 107.75 | K8: 2000 | L8: 1991.898825 | M8: 39837.9765 | N8: 0
B9: US91086QBA58 | C9: 18.4863 | D9: 103.35 | E9: 2000 | F9: 1910.559105 | G9: 38211.1821 | H9: 38201.93895 | I9: 9.24315 | J9: 103.35 | K9: 2000 | L9: 1910.559105 | M9: 38211.1821 | N9: 9.24315
B10: US91086QBC15 | C10: 18.4863 | D10: 103.825 | E10: 2000 | F10: 1919.340097 | G10: 38386.80195 | H10: 38386.80195 | I10: 0 | J10: 103825 | K10: 2000 | L10: 1919340.097 | M10: 38386801.95 | N10: 38348415.15
B11: US91086QBD97 | C11: 18.4863 | D11: 103.825 | E11: 1000 | F11: 1919.340097 | G11: 19193.40098 | H11: 19193.40098 | I11: 0 | J11: 103825 | K11: 1000 | L11: 1919340.097 | M11: 19193400.98 | N11: 19174207.57
B12: US91087BAA89 | C12: 18.4863 | D12: 100.875 | E12: 1000 | F12: 1864.805513 | G12: 18648.05513 | H12: 18648.05512 | I12: 0 | J12: 100875 | K12: 1000 | L12: 1864805.512 | M12: 18648055.12 | N12: 18629407.07
B13: US71656MBD02 | C13: 18.4863 | D13: 96.43321 | E13: 1000 | F13: 1782.69325 | G13: 17826.9325 | H13: 18081.91219 | I13: -254.9796878 | J13: 9643321 | K13: 1000 | L13: 178269325 | M13: 1782693250 | N13: 1782675168
B14: US706451AG65 | C14: 18.4863 | D14: 117 | E14: 1000 | F14: 2162.8971 | G14: 21628.971 | H14: 21444.108 | I14: 184.863 | J14: 117 | K14: 1000 | L14: 2162.8971 | M14: 21628.971 | N14: 184.863
B15: US71654QAX07 | C15: 18.4863 | D15: 106.08731 | E15: 1000 | F15: 1961.161839 | G15: 19611.61839 | H15: 19671.30695 | I15: -59.68856547 | J15: 10608731 | K15: 1000 | L15: 196116183.9 | M15: 1961161839 | N15: 1961142168
B16: US706451BS94 | C16: 18.4863 | D16: 103.25 | E16: 1000 | F16: 1908.710475 | G16: 19087.10475 | H16: 19087.10475 | I16: 0 | J16: 103.25 | K16: 1000 | L16: 1908.710475 | M16: 19087.10475 | N16: 0
B17: US71654QBH48 | C17: 18.4863 | D17: 101.08583 | E17: 1000 | F17: 1868.702979 | G17: 18687.02979 | H17: 18796.35038 | I17: -109.3205837 | J17: 10108583 | K17: 1000 | L17: 186870297.9 | M17: 1868702979 | N17: 1868684183
B18: US71656MAS89 | C18: 18.4863 | D18: 101.5375 | E18: 1000 | F18: 1877.052686 | G18: 18770.52686 | H18: 18800.5671 | I18: -30.0402375 | J18: 1015375 | K18: 1000 | L18: 18770526.86 | M18: 187705268.6 | N18: 187686468.1
B19: US71656MAW91 | C19: 18.4863 | D19: 100.91944 | E19: 1000 | F19: 1865.627044 | G19: 18656.27044 | H19: 18676.70889 | I19: -20.43845328 | J19: 10091944 | K19: 1000 | L19: 186562704.4 | M19: 1865627044 | N19: 1865608367
B20: US71654QAW24 | C20: 18.4863 | D20: 107.76308 | E20: 1000 | F20: 1992.140626 | G20: 19921.40626 | H20: 20011.41975 | I20: -90.01349196 | J20: 10776308 | K20: 1000 | L20: 199214062.6 | M20: 1992140626 | N20: 1992120614
B21: US71654QBG64 | C21: 18.4863 | D21: 95.4425 | E21: 1000 | F21: 1764.378688 | G21: 17643.78688 | H21: 17765.3343 | I21: -121.5474225 | J21: 954425 | K21: 1000 | L21: 17643786.88 | M21: 176437868.8 | N21: 176420103.4
B22: US71654QBB77 | C22: 18.4863 | D22: 103.15 | E22: 1000 | F22: 1906.861845 | G22: 19068.61845 | H22: 19126.70425 | I22: -58.085803 | J22: 103.15 | K22: 1000 | L22: 1906.861845 | M22: 19068.61845 | N22: -58.085803
B23: US71656MBD02 | C23: 18.4863 | D23: 96.43321 | E23: 1000 | F23: 1782.69325 | G23: 17826.9325 | H23: 18081.91219 | I23: -254.9796878 | J23: 9643321 | K23: 1000 | L23: 178269325 | M23: 1782693250 | N23: 1782675168
B24: USP14517AA73 | C24: 18.4863 | D24: 101.84375 | E24: 1000 | F24: 1882.714116 | G24: 18827.14116 | H24: 18859.51806 | I24: -32.37690575 | J24: 10184375 | K24: 1000 | L24: 188271411.6 | M24: 1882714116 | N24: 1882695256
B25: USP3691NBF61 | C25: 18.4863 | D25: 96.8 | E25: 1000 | F25: 1789.47384 | G25: 17894.7384 | H25: 17894.7384 | I25: 0 | J25: 96.8 | K25: 1000 | L25: 1789.47384 | M25: 17894.7384 | N25: 0
B26: USP13296AL53 | C26: 18.4863 | D26: 100.28 | E26: 1000 | F26: 1853.806164 | G26: 18538.06164 | H26: 18523.2726 | I26: 14.78904 | J26: 100.28 | K26: 1000 | L26: 1853.806164 | M26: 18538.06164 | N26: 14.78904
B27: USP6629MAA01 | C27: 18.4863 | D27: 101.25 | E27: 1000 | F27: 1871.737875 | G27: 18717.37875 | H27: 18790.5845 | I27: -73.205748 | J27: 101.25 | K27: 1000 | L27: 1871.737875 | M27: 18717.37875 | N27: -73.205748
B30: Aquí hay diferencias con el vector de precios del 18 y 19 de Abril
B31: Los datos para la comparación de los archivos de vector d precios y características eurobonos están al 18 de Abril (ambos)
B34: vector del 18
B35: caracteristicas del 17
